[Event "Titled Tuesday Blitz January 10 Late 2023"]
[White "Vachier-Lagrave, Maxime"]
[Black "Zierk, Steven"]
[WhiteFideId "623539"]
[BlackFideId "2034255"]
[WhiteElo "2742"]
[BlackElo "2488"]
[Result "1-0"]
[Round "07"]
[TimeControl "180+2"]
[Date "2023.01.10"]
[WhiteClock "0:00:31"]
[BlackClock "0:00:09"]

1. d4 {[%clk 0:00:00]}  e6 {[%clk 0:00:00]} 2. c4 {[%clk 0:03:00]}  f5 {[%clk 0:02:58]} 3. Nc3 {[%clk 0:02:59]}  Nf6 {[%clk 0:02:56]} 4. Bg5 {[%clk 0:02:56]}  Be7 {[%clk 0:02:56]} 5. e3 {[%clk 0:02:55]}  c6 {[%clk 0:02:53]} 6. Bd3 {[%clk 0:02:54]}  d5 {[%clk 0:02:52]} 7. Nge2 {[%clk 0:02:50]}  O-O {[%clk 0:02:52]} 8. O-O {[%clk 0:02:49]}  h6 {[%clk 0:02:50]} 9. Bf4 {[%clk 0:02:45]}  Nbd7 {[%clk 0:02:37]} 10. cxd5 {[%clk 0:02:43]}  Nxd5 {[%clk 0:02:37]} 11. Rc1 {[%clk 0:02:37]}  Nxf4 {[%clk 0:02:24]} 12. Nxf4 {[%clk 0:02:25]}  Nf6 {[%clk 0:02:13]} 13. Ng6 {[%clk 0:02:24]}  Re8 {[%clk 0:02:13]} 14. Nxe7+ {[%clk 0:02:03]}  Qxe7 {[%clk 0:02:13]} 15. Qb3 {[%clk 0:01:41]}  Kh8 {[%clk 0:02:14]} 16. Ne2 {[%clk 0:01:40]}  e5 {[%clk 0:02:10]} 17. dxe5 {[%clk 0:01:37]}  Qxe5 {[%clk 0:02:08]} 18. Nf4 {[%clk 0:01:36]}  Kh7 {[%clk 0:02:06]} 19. Rfd1 {[%clk 0:01:37]}  Bd7 {[%clk 0:01:54]} 20. Bc4 {[%clk 0:01:36]}  g5 {[%clk 0:01:42]} 21. Nh5 {[%clk 0:01:24]}  Nxh5 {[%clk 0:01:25]} 22. Rxd7+ {[%clk 0:01:16]}  Re7 {[%clk 0:01:09]} 23. Qxb7 {[%clk 0:01:12]}  Re8 {[%clk 0:01:10]} 24. Qxa7 {[%clk 0:00:55]}  Nf6 {[%clk 0:01:07]} 25. Rxe7+ {[%clk 0:00:50]}  Rxe7 {[%clk 0:00:29]} 26. Qd4 {[%clk 0:00:50]}  Qxd4 {[%clk 0:00:30]} 27. exd4 {[%clk 0:00:50]}  Ne4 {[%clk 0:00:28]} 28. Bd3 {[%clk 0:00:51]}  Rd7 {[%clk 0:00:21]} 29. Bxe4 {[%clk 0:00:37]}  fxe4 {[%clk 0:00:20]} 30. Rxc6 {[%clk 0:00:36]}  Rxd4 {[%clk 0:00:20]} 31. Rc1 {[%clk 0:00:30]}  h5 {[%clk 0:00:20]} 32. Ra1 {[%clk 0:00:31]}  Ra4 {[%clk 0:00:11]} 33. a3 {[%clk 0:00:30]}  h4 {[%clk 0:00:10]} 34. b3 {[%clk 0:00:30]}  Ra8 {[%clk 0:00:10]} 35. a4 {[%clk 0:00:30]}  Rb8 {[%clk 0:00:09]} 36. a5 {[%clk 0:00:31]} 1-0


[Site "https://www.chess.com"]

[Event "Titled Tuesday Blitz January 10 Late 2023"]
[White "Sevian, Samuel"]
[Black "Sanal, Vahap"]
[WhiteFideId "2040506"]
[BlackFideId "6300545"]
[WhiteElo "2684"]
[BlackElo "2600"]
[Result "1-0"]
[Round "07"]
[TimeControl "180+2"]
[Date "2023.01.10"]
[WhiteClock "0:00:10"]
[BlackClock "0:00:04"]

1. e4 {[%clk 0:00:00]}  e5 {[%clk 0:00:00]} 2. Nf3 {[%clk 0:03:00]}  Nc6 {[%clk 0:02:09]} 3. Bb5 {[%clk 0:02:59]}  a6 {[%clk 0:02:07]} 4. Ba4 {[%clk 0:03:00]}  Nf6 {[%clk 0:02:06]} 5. O-O {[%clk 0:03:00]}  Nxe4 {[%clk 0:02:06]} 6. d4 {[%clk 0:03:00]}  b5 {[%clk 0:02:07]} 7. Bb3 {[%clk 0:03:00]}  d5 {[%clk 0:02:07]} 8. Nxe5 {[%clk 0:02:59]}  Nxe5 {[%clk 0:02:08]} 9. dxe5 {[%clk 0:03:00]}  c6 {[%clk 0:02:07]} 10. Nd2 {[%clk 0:03:01]}  Nc5 {[%clk 0:02:07]} 11. Nf3 {[%clk 0:03:01]}  Nxb3 {[%clk 0:02:05]} 12. axb3 {[%clk 0:02:56]}  Be7 {[%clk 0:01:59]} 13. Nd4 {[%clk 0:02:55]}  Bd7 {[%clk 0:02:00]} 14. e6 {[%clk 0:02:33]}  fxe6 {[%clk 0:01:59]} 15. Qh5+ {[%clk 0:02:34]}  g6 {[%clk 0:01:49]} 16. Qe2 {[%clk 0:02:34]}  Kf7 {[%clk 0:01:49]} 17. Re1 {[%clk 0:02:34]}  Re8 {[%clk 0:01:36]} 18. Nxe6 {[%clk 0:02:34]}  Qc8 {[%clk 0:01:21]} 19. Qf3+ {[%clk 0:02:24]}  Kg8 {[%clk 0:01:21]} 20. Ng5 {[%clk 0:01:55]}  Bf5 {[%clk 0:01:20]} 21. Bd2 {[%clk 0:01:52]}  Qd7 {[%clk 0:01:11]} 22. h4 {[%clk 0:01:20]}  h6 {[%clk 0:01:04]} 23. Nh3 {[%clk 0:01:07]}  Bxh3 {[%clk 0:00:54]} 24. gxh3 {[%clk 0:00:57]}  Bxh4 {[%clk 0:00:51]} 25. Bxh6 {[%clk 0:00:48]}  Kh7 {[%clk 0:00:50]} 26. Be3 {[%clk 0:00:37]}  Re4 {[%clk 0:00:49]} 27. Bd2 {[%clk 0:00:32]}  Rae8 {[%clk 0:00:44]} 28. Rxe4 {[%clk 0:00:29]}  dxe4 {[%clk 0:00:32]} 29. Qe3 {[%clk 0:00:29]}  Kg8 {[%clk 0:00:31]} 30. Rxa6 {[%clk 0:00:27]}  Rf8 {[%clk 0:00:20]} 31. Ra7 {[%clk 0:00:23]}  Qf5 {[%clk 0:00:20]} 32. Be1 {[%clk 0:00:15]}  Bg5 {[%clk 0:00:06]} 33. Qd4 {[%clk 0:00:15]}  Bf6 {[%clk 0:00:03]} 34. Qd7 {[%clk 0:00:09]}  Qxd7 {[%clk 0:00:04]} 35. Rxd7 {[%clk 0:00:07]}  Bxb2 {[%clk 0:00:04]} 36. Re7 {[%clk 0:00:08]}  Rf3 {[%clk 0:00:04]} 37. Kg2 {[%clk 0:00:07]}  Rf4 {[%clk 0:00:02]} 38. Re6 {[%clk 0:00:06]}  c5 {[%clk 0:00:03]} 39. Rxg6+ {[%clk 0:00:06]}  Kf7 {[%clk 0:00:02]} 40. Rg4 {[%clk 0:00:06]}  Rxg4+ {[%clk 0:00:02]} 41. hxg4 {[%clk 0:00:07]}  c4 {[%clk 0:00:01]} 42. bxc4 {[%clk 0:00:08]}  bxc4 {[%clk 0:00:02]} 43. f3 {[%clk 0:00:07]}  exf3+ {[%clk 0:00:03]} 44. Kxf3 {[%clk 0:00:08]}  Ke6 {[%clk 0:00:03]} 45. Ke4 {[%clk 0:00:09]}  Be5 {[%clk 0:00:04]} 46. Bd2 {[%clk 0:00:10]}  c3 {[%clk 0:00:04]} 47. Be3 {[%clk 0:00:10]}  Bf6 {[%clk 0:00:04]} 48. Bd4 {[%clk 0:00:09]}  Bd8 {[%clk 0:00:02]} 49. Bxc3 {[%clk 0:00:09]}  Be7 {[%clk 0:00:03]} 50. Be5 {[%clk 0:00:09]}  Kf7 {[%clk 0:00:03]} 51. Kf5 {[%clk 0:00:10]}  Ke8 {[%clk 0:00:03]} 52. Ke6 {[%clk 0:00:10]}  Bd8 {[%clk 0:00:03]} 53. c3 {[%clk 0:00:10]}  Bg5 {[%clk 0:00:03]} 54. c4 {[%clk 0:00:10]}  Be7 {[%clk 0:00:03]} 55. Bf4 {[%clk 0:00:10]}  Kd8 {[%clk 0:00:04]} 56. g5 {[%clk 0:00:11]}  Ke8 {[%clk 0:00:04]} 57. g6 {[%clk 0:00:10]}  Bf8 {[%clk 0:00:04]} 58. Be5 {[%clk 0:00:10]} 1-0


[Site "https://www.chess.com"]

[Event "Titled Tuesday Blitz January 10 Late 2023"]
[White "Indjic, Aleksandar"]
[Black "Svane, Rasmus"]
[WhiteFideId "911925"]
[BlackFideId "4657101"]
[WhiteElo "2618"]
[BlackElo "2623"]
[Result "1-0"]
[Round "07"]
[TimeControl "180+2"]
[Date "2023.01.10"]
[WhiteClock "0:00:16"]
[BlackClock "0:00:01"]

1. d4 {[%clk 0:00:00]}  Nf6 {[%clk 0:00:00]} 2. Nf3 {[%clk 0:03:00]}  d5 {[%clk 0:02:54]} 3. Bf4 {[%clk 0:03:01]}  e6 {[%clk 0:02:53]} 4. e3 {[%clk 0:03:01]}  Bd6 {[%clk 0:02:53]} 5. Nbd2 {[%clk 0:03:01]}  O-O {[%clk 0:02:54]} 6. Bd3 {[%clk 0:03:01]}  c5 {[%clk 0:02:53]} 7. c3 {[%clk 0:02:59]}  Bxf4 {[%clk 0:02:54]} 8. exf4 {[%clk 0:02:56]}  Qd6 {[%clk 0:02:53]} 9. g3 {[%clk 0:02:55]}  cxd4 {[%clk 0:02:53]} 10. Nxd4 {[%clk 0:02:55]}  e5 {[%clk 0:02:53]} 11. fxe5 {[%clk 0:02:54]}  Qxe5+ {[%clk 0:02:54]} 12. Qe2 {[%clk 0:02:53]}  Qc7 {[%clk 0:02:55]} 13. O-O {[%clk 0:02:53]}  Re8 {[%clk 0:02:55]} 14. Qf3 {[%clk 0:02:52]}  Nc6 {[%clk 0:02:55]} 15. Nxc6 {[%clk 0:02:51]}  bxc6 {[%clk 0:02:46]} 16. Rfe1 {[%clk 0:02:42]}  Bg4 {[%clk 0:02:47]} 17. Qg2 {[%clk 0:02:42]}  a5 {[%clk 0:02:38]} 18. h3 {[%clk 0:02:42]}  Bd7 {[%clk 0:02:26]} 19. b3 {[%clk 0:02:41]}  c5 {[%clk 0:02:26]} 20. Bf1 {[%clk 0:02:27]}  Bc6 {[%clk 0:02:22]} 21. Qf3 {[%clk 0:02:22]}  Qb6 {[%clk 0:02:15]} 22. Bg2 {[%clk 0:02:15]}  a4 {[%clk 0:01:21]} 23. Qf4 {[%clk 0:02:12]}  axb3 {[%clk 0:01:21]} 24. axb3 {[%clk 0:01:53]}  Rxa1 {[%clk 0:01:15]} 25. Rxa1 {[%clk 0:01:50]}  h6 {[%clk 0:01:15]} 26. h4 {[%clk 0:01:48]}  Bd7 {[%clk 0:01:15]} 27. b4 {[%clk 0:01:47]}  cxb4 {[%clk 0:01:08]} 28. Qxb4 {[%clk 0:01:33]}  Qxb4 {[%clk 0:01:06]} 29. cxb4 {[%clk 0:01:32]}  Re2 {[%clk 0:00:57]} 30. Nb3 {[%clk 0:01:33]}  Rb2 {[%clk 0:00:57]} 31. Nc5 {[%clk 0:01:31]}  Bb5 {[%clk 0:00:57]} 32. Ra8+ {[%clk 0:01:16]}  Kh7 {[%clk 0:00:55]} 33. Rb8 {[%clk 0:00:56]}  Rb1+ {[%clk 0:00:55]} 34. Kh2 {[%clk 0:00:57]}  Ng4+ {[%clk 0:00:54]} 35. Kh3 {[%clk 0:00:56]}  Nxf2+ {[%clk 0:00:46]} 36. Kh2 {[%clk 0:00:57]}  Ng4+ {[%clk 0:00:47]} 37. Kh3 {[%clk 0:00:57]}  Nf2+ {[%clk 0:00:45]} 38. Kh2 {[%clk 0:00:57]}  Bc4 {[%clk 0:00:46]} 39. Bf3 {[%clk 0:00:58]}  Rb2 {[%clk 0:00:47]} 40. Kg1 {[%clk 0:00:56]}  Nh3+ {[%clk 0:00:44]} 41. Kh1 {[%clk 0:00:52]}  g5 {[%clk 0:00:41]} 42. Nd7 {[%clk 0:00:52]}  Nf2+ {[%clk 0:00:28]} 43. Kg1 {[%clk 0:00:47]}  Nh3+ {[%clk 0:00:20]} 44. Kh1 {[%clk 0:00:47]}  d4 {[%clk 0:00:21]} 45. Ne5 {[%clk 0:00:47]}  Be6 {[%clk 0:00:18]} 46. b5 {[%clk 0:00:37]}  Nf2+ {[%clk 0:00:17]} 47. Kg1 {[%clk 0:00:35]}  Nh3+ {[%clk 0:00:11]} 48. Kh1 {[%clk 0:00:35]}  g4 {[%clk 0:00:11]} 49. Be4+ {[%clk 0:00:35]}  Kg7 {[%clk 0:00:10]} 50. Nd3 {[%clk 0:00:28]}  Re2 {[%clk 0:00:10]} 51. Bc6 {[%clk 0:00:26]}  Rd2 {[%clk 0:00:07]} 52. Nc5 {[%clk 0:00:26]}  d3 {[%clk 0:00:08]} 53. Rd8 {[%clk 0:00:25]}  Rd1+ {[%clk 0:00:05]} 54. Kh2 {[%clk 0:00:24]}  d2 {[%clk 0:00:05]} 55. b6 {[%clk 0:00:24]}  Rc1 {[%clk 0:00:05]} 56. Nxe6+ {[%clk 0:00:19]}  fxe6 {[%clk 0:00:05]} 57. b7 {[%clk 0:00:17]}  Rb1 {[%clk 0:00:06]} 58. Rxd2 {[%clk 0:00:18]}  Kf6 {[%clk 0:00:02]} 59. Rd8 {[%clk 0:00:16]}  Rb2+ {[%clk 0:00:02]} 60. Bg2 {[%clk 0:00:16]}  Ke7 {[%clk 0:00:02]} 61. b8=Q {[%clk 0:00:16]}  Rxb8 {[%clk 0:00:01]} 62. Rxb8 {[%clk 0:00:16]} 1-0


[Site "https://www.chess.com"]

[Event "Titled Tuesday Blitz January 10 Late 2023"]
[White "Rustemov, Alexander"]
[Black "Oparin, Grigoriy"]
[WhiteFideId "4119002"]
[BlackFideId "24125890"]
[WhiteElo "2525"]
[BlackElo "2667"]
[Result "1-0"]
[Round "07"]
[TimeControl "180+2"]
[Date "2023.01.10"]
[WhiteClock "0:00:38"]
[BlackClock "0:00:08"]

1. d4 {[%clk 0:00:00]}  d5 {[%clk 0:00:00]} 2. c4 {[%clk 0:02:56]}  e6 {[%clk 0:02:57]} 3. Nc3 {[%clk 0:02:56]}  Nf6 {[%clk 0:02:58]} 4. Nf3 {[%clk 0:02:55]}  Nbd7 {[%clk 0:02:58]} 5. Bg5 {[%clk 0:02:55]}  h6 {[%clk 0:02:58]} 6. Bh4 {[%clk 0:02:54]}  Be7 {[%clk 0:02:58]} 7. e3 {[%clk 0:02:53]}  O-O {[%clk 0:02:59]} 8. Qc2 {[%clk 0:02:53]}  c5 {[%clk 0:02:59]} 9. cxd5 {[%clk 0:02:52]}  Nxd5 {[%clk 0:02:54]} 10. Bxe7 {[%clk 0:02:51]}  Qxe7 {[%clk 0:02:53]} 11. Nxd5 {[%clk 0:02:50]}  exd5 {[%clk 0:02:53]} 12. dxc5 {[%clk 0:02:49]}  Nxc5 {[%clk 0:02:54]} 13. Be2 {[%clk 0:02:49]}  Bg4 {[%clk 0:02:55]} 14. O-O {[%clk 0:02:47]}  Rac8 {[%clk 0:02:56]} 15. h3 {[%clk 0:02:46]}  Bxf3 {[%clk 0:02:56]} 16. Bxf3 {[%clk 0:02:42]}  Rfd8 {[%clk 0:02:36]} 17. Rac1 {[%clk 0:02:40]}  Rc6 {[%clk 0:02:37]} 18. Qd2 {[%clk 0:02:36]}  Ne4 {[%clk 0:02:18]} 19. Qd4 {[%clk 0:02:32]}  Ng5 {[%clk 0:02:14]} 20. Bg4 {[%clk 0:02:26]}  Rg6 {[%clk 0:01:59]} 21. Kh1 {[%clk 0:02:06]}  a6 {[%clk 0:01:43]} 22. Qf4 {[%clk 0:01:56]}  Ne4 {[%clk 0:01:29]} 23. Qc7 {[%clk 0:01:46]}  Qh4 {[%clk 0:01:14]} 24. g3 {[%clk 0:01:36]}  Qf6 {[%clk 0:00:59]} 25. Kg2 {[%clk 0:01:24]}  Rd6 {[%clk 0:00:50]} 26. Qb8+ {[%clk 0:01:22]}  Kh7 {[%clk 0:00:37]} 27. Rc8 {[%clk 0:01:16]}  Rg5 {[%clk 0:00:37]} 28. Bf3 {[%clk 0:01:16]}  Rb6 {[%clk 0:00:37]} 29. Rh8+ {[%clk 0:01:04]}  Kg6 {[%clk 0:00:26]} 30. Qg8 {[%clk 0:01:03]}  Rxg3+ {[%clk 0:00:26]} 31. fxg3 {[%clk 0:01:04]}  Rxb2+ {[%clk 0:00:08]} 32. Kg1 {[%clk 0:01:00]}  Nxg3 {[%clk 0:00:09]} 33. Bh5+ {[%clk 0:01:01]}  Nxh5 {[%clk 0:00:09]} 34. Qh7+ {[%clk 0:00:53]}  Kg5 {[%clk 0:00:08]} 35. Rxf6 {[%clk 0:00:48]}  Kxf6 {[%clk 0:00:08]} 36. Qd3 {[%clk 0:00:48]}  Rxa2 {[%clk 0:00:08]} 37. Qd4+ {[%clk 0:00:41]}  Kg6 {[%clk 0:00:08]} 38. Qg4+ {[%clk 0:00:38]} 1-0


[Site "https://www.chess.com"]

[Event "Titled Tuesday Blitz January 10 Late 2023"]
[White "Domingo Nunez, Alejandro"]
[Black "Aravindh, Chithambaram VR."]
[WhiteFideId "22245561"]
[BlackFideId "5072786"]
[WhiteElo "2338"]
[BlackElo "2633"]
[Result "0-1"]
[Round "07"]
[TimeControl "180+2"]
[Date "2023.01.10"]
[WhiteClock "0:00:12"]
[BlackClock "0:01:09"]

1. Nf3 {[%clk 0:00:00]}  Nf6 {[%clk 0:00:00]} 2. g3 {[%clk 0:02:43]}  g6 {[%clk 0:02:59]} 3. b3 {[%clk 0:02:44]}  Bg7 {[%clk 0:02:59]} 4. Bb2 {[%clk 0:02:45]}  O-O {[%clk 0:03:00]} 5. Bg2 {[%clk 0:02:45]}  d6 {[%clk 0:03:00]} 6. d4 {[%clk 0:02:45]}  b5 {[%clk 0:03:01]} 7. O-O {[%clk 0:02:46]}  Bb7 {[%clk 0:03:01]} 8. Qd3 {[%clk 0:02:45]}  a6 {[%clk 0:02:59]} 9. Nbd2 {[%clk 0:02:45]}  c5 {[%clk 0:02:58]} 10. e4 {[%clk 0:02:45]}  cxd4 {[%clk 0:02:58]} 11. Nxd4 {[%clk 0:02:37]}  Nbd7 {[%clk 0:02:55]} 12. Rac1 {[%clk 0:02:32]}  Rc8 {[%clk 0:02:53]} 13. Rfe1 {[%clk 0:02:25]}  Qb6 {[%clk 0:02:45]} 14. h3 {[%clk 0:02:16]}  Nc5 {[%clk 0:02:38]} 15. Qe3 {[%clk 0:01:55]}  e5 {[%clk 0:01:52]} 16. Ne2 {[%clk 0:01:45]}  Qc7 {[%clk 0:01:51]} 17. c4 {[%clk 0:01:45]}  b4 {[%clk 0:01:43]} 18. f4 {[%clk 0:01:22]}  exf4 {[%clk 0:01:42]} 19. gxf4 {[%clk 0:01:20]}  Ng4 {[%clk 0:01:38]} 20. hxg4 {[%clk 0:01:15]}  Bxb2 {[%clk 0:01:35]} 21. Rc2 {[%clk 0:01:15]}  Bg7 {[%clk 0:01:36]} 22. f5 {[%clk 0:01:16]}  Rfe8 {[%clk 0:01:36]} 23. Ng3 {[%clk 0:01:00]}  Nd7 {[%clk 0:01:34]} 24. g5 {[%clk 0:00:58]}  d5 {[%clk 0:01:32]} 25. f6 {[%clk 0:00:54]}  Bf8 {[%clk 0:01:28]} 26. Qf3 {[%clk 0:00:51]}  Ne5 {[%clk 0:01:29]} 27. Qf4 {[%clk 0:00:24]}  Qc5+ {[%clk 0:01:22]} 28. Kh2 {[%clk 0:00:19]}  Nd3 {[%clk 0:01:16]} 29. Qe3 {[%clk 0:00:19]}  Nxe1 {[%clk 0:01:16]} 30. Qxe1 {[%clk 0:00:15]}  dxc4 {[%clk 0:01:15]} 31. Nf3 {[%clk 0:00:16]}  c3 {[%clk 0:01:12]} 32. e5 {[%clk 0:00:13]}  Bxf3 {[%clk 0:01:10]} 33. Bxf3 {[%clk 0:00:12]}  Qxe5 {[%clk 0:01:09]} 0-1


[Site "https://www.chess.com"]

[Event "Titled Tuesday Blitz January 10 Late 2023"]
[White "Yang, Kevin"]
[Black "Jaracz, Pawel"]
[WhiteFideId "30908485"]
[BlackFideId "1102222"]
[WhiteElo "2096"]
[BlackElo "2467"]
[Result "0-1"]
[Round "07"]
[TimeControl "180+2"]
[Date "2023.01.10"]
[WhiteClock "0:00:03"]
[BlackClock "0:00:18"]

1. b3 {[%clk 0:00:00]}  d5 {[%clk 0:00:00]} 2. Bb2 {[%clk 0:03:00]}  Bg4 {[%clk 0:02:55]} 3. f3 {[%clk 0:03:00]}  Bf5 {[%clk 0:02:55]} 4. e3 {[%clk 0:02:57]}  e6 {[%clk 0:02:49]} 5. d4 {[%clk 0:02:52]}  Bd6 {[%clk 0:02:45]} 6. Bd3 {[%clk 0:02:40]}  Ne7 {[%clk 0:02:34]} 7. e4 {[%clk 0:02:31]}  Bg6 {[%clk 0:02:33]} 8. e5 {[%clk 0:02:21]}  Bb4+ {[%clk 0:02:29]} 9. c3 {[%clk 0:02:14]}  Ba5 {[%clk 0:02:29]} 10. a4 {[%clk 0:02:13]}  c6 {[%clk 0:02:29]} 11. Ne2 {[%clk 0:02:09]}  Nd7 {[%clk 0:02:23]} 12. b4 {[%clk 0:02:01]}  Bc7 {[%clk 0:02:23]} 13. Kf2 {[%clk 0:01:50]}  a5 {[%clk 0:02:22]} 14. h4 {[%clk 0:01:43]}  f6 {[%clk 0:02:17]} 15. Bxg6+ {[%clk 0:01:26]}  hxg6 {[%clk 0:02:08]} 16. Nf4 {[%clk 0:01:15]}  Kf7 {[%clk 0:02:08]} 17. exf6 {[%clk 0:01:13]}  gxf6 {[%clk 0:02:06]} 18. Nd3 {[%clk 0:00:56]}  Nf5 {[%clk 0:02:05]} 19. f4 {[%clk 0:00:52]}  Nxh4 {[%clk 0:02:04]} 20. Qg4 {[%clk 0:00:40]}  f5 {[%clk 0:01:57]} 21. Qg3 {[%clk 0:00:30]}  Nf6 {[%clk 0:01:51]} 22. Nd2 {[%clk 0:00:28]}  Ne4+ {[%clk 0:01:51]} 23. Nxe4 {[%clk 0:00:25]}  dxe4 {[%clk 0:01:46]} 24. Nc5 {[%clk 0:00:25]}  b6 {[%clk 0:01:36]} 25. Nb3 {[%clk 0:00:21]}  g5 {[%clk 0:01:29]} 26. Qxg5 {[%clk 0:00:19]}  Qxg5 {[%clk 0:01:28]} 27. fxg5 {[%clk 0:00:16]}  Ng6 {[%clk 0:01:26]} 28. bxa5 {[%clk 0:00:17]}  bxa5 {[%clk 0:01:20]} 29. Nc5 {[%clk 0:00:13]}  Bd6 {[%clk 0:01:20]} 30. Ba3 {[%clk 0:00:08]}  Nf4 {[%clk 0:01:18]} 31. g3 {[%clk 0:00:08]}  Bxc5 {[%clk 0:01:16]} 32. Bxc5 {[%clk 0:00:06]}  Nd3+ {[%clk 0:01:07]} 33. Ke3 {[%clk 0:00:03]}  Kg6 {[%clk 0:01:01]} 34. Bd6 {[%clk 0:00:03]}  Kxg5 {[%clk 0:01:01]} 35. Rab1 {[%clk 0:00:02]}  Rxh1 {[%clk 0:00:59]} 36. Rxh1 {[%clk 0:00:02]}  Kg6 {[%clk 0:00:45]} 37. Rb1 {[%clk 0:00:03]}  Rd8 {[%clk 0:00:39]} 38. Bc7 {[%clk 0:00:01]}  Rd7 {[%clk 0:00:38]} 39. Bf4 {[%clk 0:00:01]}  c5 {[%clk 0:00:36]} 40. Rb6 {[%clk 0:00:01]}  cxd4+ {[%clk 0:00:32]} 41. cxd4 {[%clk 0:00:02]}  Kf6 {[%clk 0:00:31]} 42. Rb5 {[%clk 0:00:02]}  Nb4 {[%clk 0:00:32]} 43. Rxa5 {[%clk 0:00:03]}  Nc2+ {[%clk 0:00:30]} 44. Ke2 {[%clk 0:00:03]}  Nxd4+ {[%clk 0:00:31]} 45. Kf2 {[%clk 0:00:03]}  Nc6 {[%clk 0:00:31]} 46. Ra6 {[%clk 0:00:04]}  Nb4 {[%clk 0:00:30]} 47. Ra8 {[%clk 0:00:04]}  Nd5 {[%clk 0:00:30]} 48. a5 {[%clk 0:00:04]}  e5 {[%clk 0:00:27]} 49. Bd2 {[%clk 0:00:05]}  Nb6 {[%clk 0:00:27]} 50. axb6 {[%clk 0:00:04]}  Rxd2+ {[%clk 0:00:19]} 51. Ke3 {[%clk 0:00:04]}  Rb2 {[%clk 0:00:20]} 52. Ra6 {[%clk 0:00:05]}  Rb3+ {[%clk 0:00:20]} 53. Kf2 {[%clk 0:00:04]}  Kg5 {[%clk 0:00:20]} 54. Kg2 {[%clk 0:00:04]}  Kg4 {[%clk 0:00:21]} 55. Kf2 {[%clk 0:00:03]}  Rb2+ {[%clk 0:00:21]} 56. Ke1 {[%clk 0:00:04]}  Kxg3 {[%clk 0:00:19]} 57. Kd1 {[%clk 0:00:04]}  e3 {[%clk 0:00:19]} 58. Kc1 {[%clk 0:00:04]}  Rb5 {[%clk 0:00:18]} 59. Kc2 {[%clk 0:00:04]}  f4 {[%clk 0:00:18]} 60. Kd3 {[%clk 0:00:04]}  Kf3 {[%clk 0:00:17]} 61. Ra1 {[%clk 0:00:04]}  Rb3+ {[%clk 0:00:18]} 62. Kc4 {[%clk 0:00:03]}  Rxb6 {[%clk 0:00:17]} 63. Rf1+ {[%clk 0:00:03]}  Ke4 {[%clk 0:00:18]} 0-1


[Site "https://www.chess.com"]

[Event "Titled Tuesday Blitz January 10 Late 2023"]
[White "Tologon tegin, Semetei"]
[Black "Keymer, Vincent"]
[WhiteFideId "13800574"]
[BlackFideId "12940690"]
[WhiteElo "2372"]
[BlackElo "2700"]
[Result "0-1"]
[Round "07"]
[TimeControl "180+2"]
[Date "2023.01.10"]
[WhiteClock "0:00:06"]
[BlackClock "0:00:53"]

1. Nf3 {[%clk 0:00:00]}  c6 {[%clk 0:00:00]} 2. g3 {[%clk 0:03:00]}  d5 {[%clk 0:02:58]} 3. Bg2 {[%clk 0:03:00]}  Bg4 {[%clk 0:02:57]} 4. O-O {[%clk 0:03:01]}  Nd7 {[%clk 0:02:57]} 5. c4 {[%clk 0:03:00]}  Bxf3 {[%clk 0:02:57]} 6. exf3 {[%clk 0:02:58]}  dxc4 {[%clk 0:02:57]} 7. Qe2 {[%clk 0:02:52]}  Nb6 {[%clk 0:02:56]} 8. Na3 {[%clk 0:02:49]}  Qd4 {[%clk 0:02:50]} 9. Rd1 {[%clk 0:02:30]}  Rd8 {[%clk 0:02:47]} 10. Bf1 {[%clk 0:01:53]}  e6 {[%clk 0:02:41]} 11. Nxc4 {[%clk 0:01:51]}  Nxc4 {[%clk 0:02:31]} 12. Qxc4 {[%clk 0:01:49]}  Bc5 {[%clk 0:02:28]} 13. Qxd4 {[%clk 0:01:49]}  Bxd4 {[%clk 0:02:29]} 14. Rb1 {[%clk 0:01:46]}  h5 {[%clk 0:02:30]} 15. h4 {[%clk 0:01:45]}  Ne7 {[%clk 0:02:24]} 16. d3 {[%clk 0:01:43]}  Rd5 {[%clk 0:02:22]} 17. Bd2 {[%clk 0:01:38]}  Nf5 {[%clk 0:02:21]} 18. Kg2 {[%clk 0:01:26]}  O-O {[%clk 0:02:15]} 19. f4 {[%clk 0:01:14]}  Rfd8 {[%clk 0:02:14]} 20. Be2 {[%clk 0:01:14]}  g6 {[%clk 0:02:10]} 21. Bc3 {[%clk 0:01:13]}  a5 {[%clk 0:02:10]} 22. a4 {[%clk 0:01:12]}  Bg7 {[%clk 0:02:01]} 23. Bf1 {[%clk 0:01:08]}  Ra8 {[%clk 0:01:39]} 24. Kf3 {[%clk 0:00:53]}  b5 {[%clk 0:01:25]} 25. axb5 {[%clk 0:00:51]}  cxb5 {[%clk 0:01:25]} 26. Ke2 {[%clk 0:00:45]}  Nd4+ {[%clk 0:01:24]} 27. Bxd4 {[%clk 0:00:44]}  Rxd4 {[%clk 0:00:57]} 28. b3 {[%clk 0:00:40]}  Rb4 {[%clk 0:00:58]} 29. Rdc1 {[%clk 0:00:36]}  Bd4 {[%clk 0:00:55]} 30. Bg2 {[%clk 0:00:33]}  Ra7 {[%clk 0:00:54]} 31. Bc6 {[%clk 0:00:31]}  Kg7 {[%clk 0:00:53]} 32. Bg2 {[%clk 0:00:29]}  a4 {[%clk 0:00:52]} 33. bxa4 {[%clk 0:00:12]}  Rxb1 {[%clk 0:00:52]} 34. Rxb1 {[%clk 0:00:12]}  bxa4 {[%clk 0:00:53]} 35. Rb4 {[%clk 0:00:12]}  a3 {[%clk 0:00:53]} 36. Rxd4 {[%clk 0:00:05]}  a2 {[%clk 0:00:53]} 37. Ra4 {[%clk 0:00:06]}  Rxa4 {[%clk 0:00:53]} 0-1


[Site "https://www.chess.com"]